[Event "Titled Tuesday Blitz February 07 Late 2023"]
[White "Torres Dominguez, David"]
[Black "CheckBits"]
[WhiteFideId "2220857"]
[WhiteElo "1994"]
[BlackElo "2403"]
[Result "1/2-1/2"]
[Round "06"]
[TimeControl "180+2"]
[Date "2023.02.07"]
[WhiteClock "0:00:13"]
[BlackClock "0:00:12"]

1. e4 {[%clk 0:02:29]}  e5 {[%clk 0:02:59]} 2. Bc4 {[%clk 0:01:57]}  Nf6 {[%clk 0:02:58]} 3. Nc3 {[%clk 0:01:56]}  Nc6 {[%clk 0:02:56]} 4. d3 {[%clk 0:01:55]}  Na5 {[%clk 0:02:56]} 5. f4 {[%clk 0:01:54]}  Nxc4 {[%clk 0:02:53]} 6. dxc4 {[%clk 0:01:55]}  d6 {[%clk 0:02:23]} 7. fxe5 {[%clk 0:01:54]}  dxe5 {[%clk 0:02:22]} 8. Qxd8+ {[%clk 0:01:55]}  Kxd8 {[%clk 0:02:23]} 9. Nf3 {[%clk 0:01:54]}  Bb4 {[%clk 0:02:21]} 10. Bd2 {[%clk 0:01:50]}  Nd7 {[%clk 0:02:00]} 11. O-O-O {[%clk 0:01:48]}  f6 {[%clk 0:01:58]} 12. Nd5 {[%clk 0:01:42]}  Bxd2+ {[%clk 0:01:57]} 13. Rxd2 {[%clk 0:01:43]}  c6 {[%clk 0:01:55]} 14. Nb4 {[%clk 0:01:41]}  Kc7 {[%clk 0:01:55]} 15. Rhd1 {[%clk 0:01:41]}  Nc5 {[%clk 0:01:54]} 16. Re1 {[%clk 0:01:36]}  Bg4 {[%clk 0:01:43]} 17. Nd3 {[%clk 0:01:34]}  Ne6 {[%clk 0:01:42]} 18. h3 {[%clk 0:01:22]}  Bxf3 {[%clk 0:01:37]} 19. gxf3 {[%clk 0:01:23]}  Rad8 {[%clk 0:01:34]} 20. Nf2 {[%clk 0:01:18]}  Ng5 {[%clk 0:01:31]} 21. Re3 {[%clk 0:01:16]}  Rd4 {[%clk 0:01:24]} 22. b3 {[%clk 0:01:15]}  Rhd8 {[%clk 0:01:21]} 23. Rxd4 {[%clk 0:01:15]}  exd4 {[%clk 0:01:21]} 24. Rd3 {[%clk 0:01:15]}  Ne6 {[%clk 0:01:20]} 25. h4 {[%clk 0:01:06]}  Nf4 {[%clk 0:01:19]} 26. Rd2 {[%clk 0:01:05]}  g5 {[%clk 0:01:13]} 27. hxg5 {[%clk 0:01:05]}  fxg5 {[%clk 0:01:13]} 28. Nd3 {[%clk 0:00:53]}  Nxd3+ {[%clk 0:01:08]} 29. cxd3 {[%clk 0:00:53]}  Rf8 {[%clk 0:01:07]} 30. Rh2 {[%clk 0:00:52]}  Rxf3 {[%clk 0:00:56]} 31. Rxh7+ {[%clk 0:00:52]}  Kb6 {[%clk 0:00:55]} 32. Rg7 {[%clk 0:00:52]}  Rxd3 {[%clk 0:00:53]} 33. Rxg5 {[%clk 0:00:52]}  Re3 {[%clk 0:00:53]} 34. c5+ {[%clk 0:00:51]}  Kb5 {[%clk 0:00:53]} 35. Rg7 {[%clk 0:00:48]}  Kb4 {[%clk 0:00:44]} 36. Kd2 {[%clk 0:00:46]}  b5 {[%clk 0:00:38]} 37. cxb6 {[%clk 0:00:45]}  axb6 {[%clk 0:00:38]} 38. Rb7 {[%clk 0:00:42]}  b5 {[%clk 0:00:37]} 39. a4 {[%clk 0:00:31]}  Rxb3 {[%clk 0:00:27]} 40. axb5 {[%clk 0:00:31]}  c5 {[%clk 0:00:27]} 41. b6 {[%clk 0:00:28]}  c4 {[%clk 0:00:25]} 42. Rd7 {[%clk 0:00:23]}  Rb2+ {[%clk 0:00:25]} 43. Kc1 {[%clk 0:00:23]}  Kc3 {[%clk 0:00:25]} 44. Rxd4 {[%clk 0:00:20]}  Rxb6 {[%clk 0:00:19]} 45. Rd2 {[%clk 0:00:15]}  Ra6 {[%clk 0:00:15]} 46. Rc2+ {[%clk 0:00:15]}  Kd3 {[%clk 0:00:15]} 47. Rd2+ {[%clk 0:00:14]}  Kxe4 {[%clk 0:00:15]} 48. Rd8 {[%clk 0:00:13]}  Ra2 {[%clk 0:00:14]} 49. Rh8 {[%clk 0:00:13]}  Kd3 {[%clk 0:00:11]} 50. Rh3+ {[%clk 0:00:13]}  Kd4 {[%clk 0:00:12]} 51. Rh4+ {[%clk 0:00:13]}  Kc5 {[%clk 0:00:11]} 52. Rh3 {[%clk 0:00:13]}  Kb4 {[%clk 0:00:11]} 53. Kb1 {[%clk 0:00:13]}  Rg2 {[%clk 0:00:10]} 54. Kc1 {[%clk 0:00:12]}  Rf2 {[%clk 0:00:10]} 55. Kb1 {[%clk 0:00:12]}  Re2 {[%clk 0:00:11]} 56. Kc1 {[%clk 0:00:12]}  Ra2 {[%clk 0:00:10]} 57. Rg3 {[%clk 0:00:12]}  Rf2 {[%clk 0:00:10]} 58. Rh3 {[%clk 0:00:12]}  Rg2 {[%clk 0:00:10]} 59. Rf3 {[%clk 0:00:12]}  c3 {[%clk 0:00:09]} 60. Rf8 {[%clk 0:00:11]}  Kb3 {[%clk 0:00:08]} 61. Rb8+ {[%clk 0:00:11]}  Kc4 {[%clk 0:00:09]} 62. Rc8+ {[%clk 0:00:12]}  Kd3 {[%clk 0:00:10]} 63. Rd8+ {[%clk 0:00:12]}  Kc4 {[%clk 0:00:10]} 64. Rc8+ {[%clk 0:00:12]}  Kb4 {[%clk 0:00:11]} 65. Rb8+ {[%clk 0:00:12]}  Ka3 {[%clk 0:00:12]} 66. Ra8+ {[%clk 0:00:13]}  Kb3 {[%clk 0:00:12]} 67. Rb8+ {[%clk 0:00:13]}  Kc4 {[%clk 0:00:12]} 68. Rc8+ {[%clk 0:00:13]} 1/2-1/2


[Site "https://www.chess.com"]

[Event "Titled Tuesday Blitz February 07 Late 2023"]
[White "Hoffmann, Asa"]
[Black "Kochetov, Andrey"]
[WhiteFideId "2001470"]
[BlackFideId "24130532"]
[WhiteElo "2185"]
[BlackElo "2165"]
[Result "0-1"]
[Round "06"]
[TimeControl "180+2"]
[Date "2023.02.07"]
[WhiteClock "0:00:22"]
[BlackClock "0:00:07"]

1. d4 {[%clk 0:02:58]}  Nf6 {[%clk 0:02:58]} 2. Bg5 {[%clk 0:02:56]}  Ne4 {[%clk 0:02:57]} 3. Bf4 {[%clk 0:02:56]}  d5 {[%clk 0:02:56]} 4. f3 {[%clk 0:02:56]}  Nf6 {[%clk 0:02:56]} 5. e4 {[%clk 0:02:55]}  dxe4 {[%clk 0:02:54]} 6. Nc3 {[%clk 0:02:55]}  exf3 {[%clk 0:02:42]} 7. Nxf3 {[%clk 0:02:54]}  Bf5 {[%clk 0:02:37]} 8. Bc4 {[%clk 0:02:53]}  e6 {[%clk 0:02:36]} 9. Ne5 {[%clk 0:02:52]}  Be7 {[%clk 0:02:28]} 10. O-O {[%clk 0:02:51]}  O-O {[%clk 0:02:25]} 11. g4 {[%clk 0:02:42]}  Bg6 {[%clk 0:02:19]} 12. h4 {[%clk 0:02:42]}  Nd5 {[%clk 0:01:59]} 13. Bxd5 {[%clk 0:02:35]}  exd5 {[%clk 0:01:57]} 14. h5 {[%clk 0:02:34]}  Be4 {[%clk 0:01:57]} 15. Nxe4 {[%clk 0:02:33]}  dxe4 {[%clk 0:01:57]} 16. c3 {[%clk 0:02:32]}  Nd7 {[%clk 0:01:53]} 17. Qe2 {[%clk 0:02:31]}  c5 {[%clk 0:01:43]} 18. Qxe4 {[%clk 0:02:28]}  cxd4 {[%clk 0:01:42]} 19. cxd4 {[%clk 0:02:28]}  Nf6 {[%clk 0:01:41]} 20. Qd3 {[%clk 0:02:20]}  Nd5 {[%clk 0:01:34]} 21. Bd2 {[%clk 0:02:16]}  Bg5 {[%clk 0:01:19]} 22. Rae1 {[%clk 0:02:09]}  Bxd2 {[%clk 0:01:11]} 23. Qxd2 {[%clk 0:02:09]}  Qh4 {[%clk 0:01:09]} 24. Qg2 {[%clk 0:02:04]}  Rad8 {[%clk 0:00:48]} 25. Nf3 {[%clk 0:02:00]}  Qf6 {[%clk 0:00:41]} 26. g5 {[%clk 0:01:56]}  Qb6 {[%clk 0:00:40]} 27. Re5 {[%clk 0:01:51]}  Nf4 {[%clk 0:00:38]} 28. Qg4 {[%clk 0:01:45]}  Ne6 {[%clk 0:00:13]} 29. Rd1 {[%clk 0:01:44]}  Rd6 {[%clk 0:00:09]} 30. h6 {[%clk 0:01:43]}  Rfd8 {[%clk 0:00:08]} 31. Re4 {[%clk 0:01:32]}  Qxb2 {[%clk 0:00:06]} 32. Qf5 {[%clk 0:01:26]}  Qb6 {[%clk 0:00:04]} 33. Kg2 {[%clk 0:01:20]}  Rd5 {[%clk 0:00:02]} 34. Ne5 {[%clk 0:01:19]}  Qc7 {[%clk 0:00:01]} 35. Rc1 {[%clk 0:01:09]}  Qe7 {[%clk 0:00:02]} 36. Rg4 {[%clk 0:01:00]}  Rxd4 {[%clk 0:00:02]} 37. hxg7 {[%clk 0:00:56]}  Rxg4+ {[%clk 0:00:02]} 38. Nxg4 {[%clk 0:00:56]}  Qxg5 {[%clk 0:00:02]} 39. Qxg5 {[%clk 0:00:54]}  Nxg5 {[%clk 0:00:03]} 40. Rc7 {[%clk 0:00:53]}  Rd2+ {[%clk 0:00:03]} 41. Kg3 {[%clk 0:00:51]}  Kxg7 {[%clk 0:00:04]} 42. Rxb7 {[%clk 0:00:50]}  Rxa2 {[%clk 0:00:04]} 43. Ne3 {[%clk 0:00:49]}  Ne4+ {[%clk 0:00:04]} 44. Kf4 {[%clk 0:00:49]}  Nc5 {[%clk 0:00:04]} 45. Rb8 {[%clk 0:00:47]}  Ra4+ {[%clk 0:00:03]} 46. Kf3 {[%clk 0:00:45]}  Ne6 {[%clk 0:00:03]} 47. Nd5 {[%clk 0:00:45]}  Rd4 {[%clk 0:00:03]} 48. Ne7 {[%clk 0:00:42]}  Kf6 {[%clk 0:00:03]} 49. Nc6 {[%clk 0:00:40]}  Rc4 {[%clk 0:00:03]} 50. Nxa7 {[%clk 0:00:40]}  h5 {[%clk 0:00:03]} 51. Rh8 {[%clk 0:00:39]}  Ng7 {[%clk 0:00:02]} 52. Rh6+ {[%clk 0:00:38]}  Kg5 {[%clk 0:00:02]} 53. Rb6 {[%clk 0:00:36]}  Rc5 {[%clk 0:00:02]} 54. Nc6 {[%clk 0:00:36]}  Kg6 {[%clk 0:00:02]} 55. Ne7+ {[%clk 0:00:34]}  Kh7 {[%clk 0:00:02]} 56. Nc6 {[%clk 0:00:32]}  Rg5 {[%clk 0:00:03]} 57. Nd4 {[%clk 0:00:32]}  Rg6 {[%clk 0:00:03]} 58. Rb5 {[%clk 0:00:31]}  Ne6 {[%clk 0:00:03]} 59. Nf5 {[%clk 0:00:31]}  Ng5+ {[%clk 0:00:03]} 60. Kf4 {[%clk 0:00:31]}  Ne6+ {[%clk 0:00:03]} 61. Kf3 {[%clk 0:00:31]}  Rf6 {[%clk 0:00:04]} 62. Ke4 {[%clk 0:00:30]}  Ng7 {[%clk 0:00:03]} 63. Nh4 {[%clk 0:00:28]}  Rh6 {[%clk 0:00:03]} 64. Kf4 {[%clk 0:00:26]}  Ne6+ {[%clk 0:00:04]} 65. Kf5 {[%clk 0:00:26]}  Nd4+ {[%clk 0:00:03]} 66. Kg5 {[%clk 0:00:25]}  Nxb5 {[%clk 0:00:04]} 67. Nf5 {[%clk 0:00:24]}  Rg6+ {[%clk 0:00:04]} 68. Kxh5 {[%clk 0:00:24]}  Nc7 {[%clk 0:00:05]} 69. Ne7 {[%clk 0:00:23]}  Ne6 {[%clk 0:00:04]} 70. Nxg6 {[%clk 0:00:22]}  fxg6+ {[%clk 0:00:05]} 71. Kh4 {[%clk 0:00:22]}  Kh6 {[%clk 0:00:06]} 72. Kg4 {[%clk 0:00:22]}  g5 {[%clk 0:00:07]} 73. Kf5 {[%clk 0:00:22]}  Kh5 {[%clk 0:00:07]} 0-1


[Site "https://www.chess.com"]

[Event "Titled Tuesday Blitz February 07 Late 2023"]
[White "Roux, Baptiste"]
[Black "Kostiukov, Alexandr"]
[WhiteFideId "36017450"]
[BlackFideId "14108100"]
[WhiteElo "2300"]
[BlackElo "2271"]
[Result "0-1"]
[Round "06"]
[TimeControl "180+2"]
[Date "2023.02.07"]
[WhiteClock "0:01:56"]
[BlackClock "0:02:30"]

1. d4 {[%clk 0:03:00]}  g6 {[%clk 0:02:55]} 2. e4 {[%clk 0:02:54]}  Bg7 {[%clk 0:02:53]} 3. Be3 {[%clk 0:02:54]}  c5 {[%clk 0:02:51]} 4. Ne2 {[%clk 0:02:52]}  cxd4 {[%clk 0:02:51]} 5. Nxd4 {[%clk 0:02:53]}  Nf6 {[%clk 0:02:50]} 6. Nc3 {[%clk 0:02:53]}  Nc6 {[%clk 0:02:50]} 7. Bc4 {[%clk 0:02:48]}  Qa5 {[%clk 0:02:49]} 8. O-O {[%clk 0:02:47]}  Qb4 {[%clk 0:02:47]} 9. Bb3 {[%clk 0:02:43]}  Nxe4 {[%clk 0:02:45]} 10. Nxe4 {[%clk 0:02:12]}  Nxd4 {[%clk 0:02:43]} 11. c3 {[%clk 0:02:10]}  Ne2+ {[%clk 0:02:43]} 12. Qxe2 {[%clk 0:02:03]}  Qxe4 {[%clk 0:02:44]} 13. Rad1 {[%clk 0:02:00]}  O-O {[%clk 0:02:38]} 14. Bd5 {[%clk 0:02:00]}  Qe5 {[%clk 0:02:31]} 15. Bd4 {[%clk 0:01:56]}  Qxe2 {[%clk 0:02:30]} 0-1


[Site "https://www.chess.com"]

[Event "Titled Tuesday Blitz February 07 Late 2023"]
[White "Alexikov, Alexander"]
[Black "Kovacs, Klara"]
[WhiteFideId "14103958"]
[BlackFideId "733210"]
[WhiteElo "2209"]
[BlackElo "2121"]
[Result "0-1"]
[Round "06"]
[TimeControl "180+2"]
[Date "2023.02.07"]
[WhiteClock "0:00:01"]
[BlackClock "0:01:41"]

1. e4 {[%clk 0:03:00]}  e6 {[%clk 0:02:59]} 2. d4 {[%clk 0:02:58]}  d5 {[%clk 0:02:30]} 3. Nc3 {[%clk 0:02:59]}  Nf6 {[%clk 0:02:30]} 4. e5 {[%clk 0:02:57]}  Nfd7 {[%clk 0:02:27]} 5. f4 {[%clk 0:02:54]}  c5 {[%clk 0:02:28]} 6. Nf3 {[%clk 0:02:52]}  Nc6 {[%clk 0:02:29]} 7. Be3 {[%clk 0:02:51]}  Be7 {[%clk 0:02:29]} 8. dxc5 {[%clk 0:02:44]}  O-O {[%clk 0:02:29]} 9. Be2 {[%clk 0:02:38]}  Qa5 {[%clk 0:02:28]} 10. O-O {[%clk 0:02:27]}  Bxc5 {[%clk 0:02:26]} 11. Nd4 {[%clk 0:02:25]}  Nxd4 {[%clk 0:02:25]} 12. Bxd4 {[%clk 0:02:24]}  Bxd4+ {[%clk 0:02:26]} 13. Qxd4 {[%clk 0:02:21]}  Qc5 {[%clk 0:02:26]} 14. Rad1 {[%clk 0:02:20]}  Qxd4+ {[%clk 0:02:26]} 15. Rxd4 {[%clk 0:02:19]}  a6 {[%clk 0:02:27]} 16. a4 {[%clk 0:02:12]}  Rd8 {[%clk 0:02:15]} 17. Kf2 {[%clk 0:02:06]}  Nc5 {[%clk 0:02:14]} 18. Ke3 {[%clk 0:02:04]}  Bd7 {[%clk 0:02:09]} 19. b3 {[%clk 0:02:02]}  Rac8 {[%clk 0:02:10]} 20. Kd2 {[%clk 0:01:54]}  Ne4+ {[%clk 0:02:06]} 21. Nxe4 {[%clk 0:01:51]}  dxe4 {[%clk 0:02:06]} 22. a5 {[%clk 0:01:34]}  e3+ {[%clk 0:02:03]} 23. Kxe3 {[%clk 0:01:28]}  Rxc2 {[%clk 0:02:01]} 24. Rfd1 {[%clk 0:01:27]}  Rc3+ {[%clk 0:02:01]} 25. Kf2 {[%clk 0:01:24]}  Rc7 {[%clk 0:01:59]} 26. b4 {[%clk 0:01:12]}  Kf8 {[%clk 0:01:59]} 27. b5 {[%clk 0:01:12]}  axb5 {[%clk 0:01:59]} 28. Bxb5 {[%clk 0:01:10]}  Ke7 {[%clk 0:02:00]} 29. h4 {[%clk 0:01:01]}  h5 {[%clk 0:01:56]} 30. R1d2 {[%clk 0:00:54]}  g6 {[%clk 0:01:50]} 31. g3 {[%clk 0:00:51]}  Ke8 {[%clk 0:01:40]} 32. Rd6 {[%clk 0:00:49]}  Ke7 {[%clk 0:01:39]} 33. Ke3 {[%clk 0:00:44]}  Rc3+ {[%clk 0:01:38]} 34. Kf2 {[%clk 0:00:44]}  Rc7 {[%clk 0:01:37]} 35. Be2 {[%clk 0:00:29]}  Rcc8 {[%clk 0:01:36]} 36. Bf3 {[%clk 0:00:28]}  Bc6 {[%clk 0:01:33]} 37. Bxc6 {[%clk 0:00:24]}  bxc6 {[%clk 0:01:34]} 38. Rxd8 {[%clk 0:00:16]}  Rxd8 {[%clk 0:01:34]} 39. Rxd8 {[%clk 0:00:04]}  Kxd8 {[%clk 0:01:35]} 40. Ke3 {[%clk 0:00:02]}  c5 {[%clk 0:01:32]} 41. Kd3 {[%clk 0:00:02]}  Kc7 {[%clk 0:01:32]} 42. Kc4 {[%clk 0:00:02]}  Kc6 {[%clk 0:01:33]} 43. a6 {[%clk 0:00:01]}  Kb6 {[%clk 0:01:33]} 44. a7 {[%clk 0:00:02]}  Kxa7 {[%clk 0:01:33]} 45. Kxc5 {[%clk 0:00:02]}  Ka6 {[%clk 0:01:34]} 46. Kd6 {[%clk 0:00:02]}  Kb5 {[%clk 0:01:34]} 47. Ke7 {[%clk 0:00:03]}  Kc5 {[%clk 0:01:35]} 48. Kxf7 {[%clk 0:00:03]}  Kd5 {[%clk 0:01:36]} 49. Kxg6 {[%clk 0:00:03]}  Ke4 {[%clk 0:01:36]} 50. Kf6 {[%clk 0:00:01]}  Kf3 {[%clk 0:01:37]} 51. Kxe6 {[%clk 0:00:01]}  Kxg3 {[%clk 0:01:37]} 52. f5 {[%clk 0:00:01]}  Kxh4 {[%clk 0:01:38]} 53. f6 {[%clk 0:00:01]}  Kg3 {[%clk 0:01:38]} 54. f7 {[%clk 0:00:02]}  h4 {[%clk 0:01:39]} 55. f8=Q {[%clk 0:00:01]}  h3 {[%clk 0:01:40]} 56. Qh6 {[%clk 0:00:01]}  h2 {[%clk 0:01:41]} 0-1


[Site "https://www.chess.com"]

[Event "Titled Tuesday Blitz February 07 Late 2023"]
[White "Lucassen, Mickey"]
[Black "Jesusesmifuerza"]
[WhiteFideId "12919110"]
[WhiteElo "2023"]
[BlackElo "2043"]
[Result "1-0"]
[Round "06"]
[TimeControl "180+2"]
[Date "2023.02.07"]
[WhiteClock "0:00:57"]
[BlackClock "0:00:08"]

1. d4 {[%clk 0:03:00]}  d5 {[%clk 0:02:59]} 2. c4 {[%clk 0:02:59]}  e6 {[%clk 0:02:59]} 3. Nf3 {[%clk 0:02:56]}  a6 {[%clk 0:02:59]} 4. cxd5 {[%clk 0:02:56]}  exd5 {[%clk 0:02:59]} 5. Nc3 {[%clk 0:02:56]}  Nf6 {[%clk 0:03:00]} 6. Bg5 {[%clk 0:02:56]}  Be6 {[%clk 0:02:59]} 7. e3 {[%clk 0:02:57]}  Nbd7 {[%clk 0:02:59]} 8. Bd3 {[%clk 0:02:54]}  h6 {[%clk 0:02:59]} 9. Bh4 {[%clk 0:02:54]}  g5 {[%clk 0:03:00]} 10. Bg3 {[%clk 0:02:54]}  Nh5 {[%clk 0:03:00]} 11. Rc1 {[%clk 0:02:46]}  c6 {[%clk 0:02:56]} 12. Ne2 {[%clk 0:02:25]}  Nxg3 {[%clk 0:02:55]} 13. Nxg3 {[%clk 0:02:22]}  Qf6 {[%clk 0:02:49]} 14. Qb3 {[%clk 0:02:19]}  Rb8 {[%clk 0:02:47]} 15. Nh5 {[%clk 0:02:12]}  Qe7 {[%clk 0:02:36]} 16. a3 {[%clk 0:02:06]}  Bg4 {[%clk 0:02:36]} 17. Ng3 {[%clk 0:02:06]}  Bxf3 {[%clk 0:02:30]} 18. gxf3 {[%clk 0:02:06]}  Bg7 {[%clk 0:02:26]} 19. Nf5 {[%clk 0:02:05]}  Qf6 {[%clk 0:02:13]} 20. Qb4 {[%clk 0:01:59]}  Bf8 {[%clk 0:02:08]} 21. Qa5 {[%clk 0:01:57]}  Bg7 {[%clk 0:00:23]} 22. Qc7 {[%clk 0:01:53]}  Rg8 {[%clk 0:00:16]} 23. Nd6+ {[%clk 0:01:41]}  Ke7 {[%clk 0:00:13]} 24. Nf5+ {[%clk 0:01:38]}  Ke8 {[%clk 0:00:12]} 25. Rc3 {[%clk 0:01:29]}  Qd8 {[%clk 0:00:12]} 26. Qd6 {[%clk 0:01:21]}  Bf8 {[%clk 0:00:10]} 27. Qg3 {[%clk 0:01:15]}  Qf6 {[%clk 0:00:10]} 28. Rb3 {[%clk 0:01:12]}  Be7 {[%clk 0:00:08]} 29. Qc7 {[%clk 0:00:57]} 1-0


[Site "https://www.chess.com"]

[Event "Titled Tuesday Blitz February 07 Late 2023"]
[White "Dushyant Sharma"]
[Black "Vaglio Munoz, Jaime"]
[WhiteFideId "25065130"]
[BlackFideId "6500145"]
[WhiteElo "2355"]
[BlackElo "2174"]
[Result "0-1"]
[Round "06"]
[TimeControl "180+2"]
[Date "2023.02.07"]
[WhiteClock "0:01:27"]
[BlackClock "0:01:21"]

1. e4 {[%clk 0:03:00]}  e6 {[%clk 0:03:00]} 2. d4 {[%clk 0:03:00]}  d5 {[%clk 0:03:00]} 3. exd5 {[%clk 0:03:01]}  exd5 {[%clk 0:02:59]} 4. Bd3 {[%clk 0:03:01]}  Bd6 {[%clk 0:02:56]} 5. Nf3 {[%clk 0:03:00]}  Ne7 {[%clk 0:02:56]} 6. O-O {[%clk 0:02:59]}  Bf5 {[%clk 0:02:55]} 7. c3 {[%clk 0:02:58]}  O-O {[%clk 0:02:52]} 8. Re1 {[%clk 0:02:55]}  Bg6 {[%clk 0:02:50]} 9. Bg5 {[%clk 0:02:52]}  c6 {[%clk 0:02:45]} 10. Bxg6 {[%clk 0:02:51]}  hxg6 {[%clk 0:02:43]} 11. Nbd2 {[%clk 0:02:52]}  Qc7 {[%clk 0:02:42]} 12. Qc2 {[%clk 0:02:46]}  Re8 {[%clk 0:02:26]} 13. c4 {[%clk 0:02:43]}  dxc4 {[%clk 0:02:16]} 14. Nxc4 {[%clk 0:02:43]}  Bf4 {[%clk 0:02:10]} 15. Bxf4 {[%clk 0:02:42]}  Qxf4 {[%clk 0:02:10]} 16. Re4 {[%clk 0:02:43]}  Qf6 {[%clk 0:02:04]} 17. Rae1 {[%clk 0:02:42]}  Nd7 {[%clk 0:02:03]} 18. Qe2 {[%clk 0:02:32]}  Kf8 {[%clk 0:02:01]} 19. Nce5 {[%clk 0:02:31]}  Nb6 {[%clk 0:01:58]} 20. a4 {[%clk 0:02:20]}  Rad8 {[%clk 0:01:56]} 21. Ng4 {[%clk 0:02:12]}  Qd6 {[%clk 0:01:54]} 22. Ng5 {[%clk 0:02:12]}  Nbd5 {[%clk 0:01:51]} 23. Qf3 {[%clk 0:02:12]}  Nf5 {[%clk 0:01:38]} 24. Nh7+ {[%clk 0:02:00]}  Kg8 {[%clk 0:01:37]} 25. Rxe8+ {[%clk 0:01:59]}  Rxe8 {[%clk 0:01:37]} 26. Rxe8+ {[%clk 0:02:00]}  Kxh7 {[%clk 0:01:37]} 27. Qh3+ {[%clk 0:02:00]}  Nh6 {[%clk 0:01:37]} 28. Ne5 {[%clk 0:01:48]}  Nf4 {[%clk 0:01:32]} 29. Qxh6+ {[%clk 0:01:29]}  gxh6 {[%clk 0:01:25]} 30. Rh8+ {[%clk 0:01:27]}  Kg7 {[%clk 0:01:21]} 0-1


[Site "https://www.chess.com"]

[Event "Titled Tuesday Blitz February 07 Late 2023"]
[White "Ramirez Allo, Eduardo"]
[Black "Ardila, Oscar Humberto"]
[WhiteFideId "2224178"]
[BlackFideId "4404742"]
[WhiteElo "2274"]
[BlackElo "1982"]
[Result "1-0"]
[Round "06"]
[TimeControl "180+2"]
[Date "2023.02.07"]
[WhiteClock "0:00:22"]
[BlackClock "0:00:24"]

1. d4 {[%clk 0:03:00]}  Nf6 {[%clk 0:02:57]} 2. c4 {[%clk 0:03:01]}  g6 {[%clk 0:02:56]} 3. Nf3 {[%clk 0:03:01]}  Bg7 {[%clk 0:02:55]} 4. g3 {[%clk 0:03:02]}  d6 {[%clk 0:02:55]} 5. Bg2 {[%clk 0:03:03]}  Nbd7 {[%clk 0:02:55]} 6. O-O {[%clk 0:03:04]}  O-O {[%clk 0:02:55]} 7. Nc3 {[%clk 0:03:04]}  c6 {[%clk 0:02:56]} 8. e4 {[%clk 0:03:04]}  Qc7 {[%clk 0:02:56]} 9. h3 {[%clk 0:03:01]}  e5 {[%clk 0:02:56]} 10. Be3 {[%clk 0:03:02]}  Re8 {[%clk 0:02:56]} 11. Qc2 {[%clk 0:03:02]}  Nf8 {[%clk 0:02:52]} 12. Rad1 {[%clk 0:03:00]}  Ne6 {[%clk 0:02:52]} 13. Rfe1 {[%clk 0:02:58]}  Bd7 {[%clk 0:02:52]} 14. b3 {[%clk 0:02:51]}  Rad8 {[%clk 0:02:51]} 15. Qb2 {[%clk 0:02:46]}  Bc8 {[%clk 0:02:48]} 16. d5 {[%clk 0:02:44]}  cxd5 {[%clk 0:02:46]} 17. Nxd5 {[%clk 0:02:41]}  Nxd5 {[%clk 0:02:45]} 18. cxd5 {[%clk 0:02:42]}  Nc5 {[%clk 0:02:41]} 19. Rc1 {[%clk 0:02:36]}  Qe7 {[%clk 0:02:17]} 20. Qb1 {[%clk 0:02:25]}  a5 {[%clk 0:02:13]} 21. Nd2 {[%clk 0:02:23]}  b5 {[%clk 0:02:09]} 22. Bf1 {[%clk 0:02:11]}  Bd7 {[%clk 0:02:03]} 23. b4 {[%clk 0:01:58]}  axb4 {[%clk 0:01:59]} 24. Qxb4 {[%clk 0:01:59]}  Bf8 {[%clk 0:01:47]} 25. Nb3 {[%clk 0:01:43]}  Nxb3 {[%clk 0:01:41]} 26. axb3 {[%clk 0:01:42]}  Rb8 {[%clk 0:01:33]} 27. Rc7 {[%clk 0:01:39]}  Rec8 {[%clk 0:01:33]} 28. Rec1 {[%clk 0:01:39]}  Qd8 {[%clk 0:01:30]} 29. Qa5 {[%clk 0:01:20]}  Rxc7 {[%clk 0:01:26]} 30. Qxc7 {[%clk 0:01:20]}  f5 {[%clk 0:00:50]} 31. f3 {[%clk 0:01:08]}  b4 {[%clk 0:00:43]} 32. Qxd8 {[%clk 0:00:54]}  Rxd8 {[%clk 0:00:42]} 33. Rc7 {[%clk 0:00:55]}  Be8 {[%clk 0:00:27]} 34. Rb7 {[%clk 0:00:48]}  Rc8 {[%clk 0:00:27]} 35. Rxb4 {[%clk 0:00:45]}  Rc2 {[%clk 0:00:26]} 36. Rb8 {[%clk 0:00:42]}  Kf7 {[%clk 0:00:26]} 37. Rb7+ {[%clk 0:00:39]}  Kg8 {[%clk 0:00:26]} 38. b4 {[%clk 0:00:27]}  Rc1 {[%clk 0:00:24]} 39. Bxc1 {[%clk 0:00:23]}  fxe4 {[%clk 0:00:24]} 40. fxe4 {[%clk 0:00:23]}  h5 {[%clk 0:00:24]} 41. b5 {[%clk 0:00:22]} 1-0


[Site "https://www.chess.com"]

[Event "Titled Tuesday Blitz February 07 Late 2023"]
[White "Garcia Almaguer, Juan Manuel"]
[Black "Tarnowska, Aleksandra"]
[WhiteFideId "5110491"]
[BlackFideId "1180967"]
[WhiteElo "2090"]
[BlackElo "1835"]
[Result "1-0"]
[Round "06"]
[TimeControl "180+2"]
[Date "2023.02.07"]
[WhiteClock "0:01:21"]
[BlackClock "0:00:02"]

1. e4 {[%clk 0:02:55]}  c5 {[%clk 0:03:00]} 2. Nf3 {[%clk 0:02:49]}  e6 {[%clk 0:03:00]} 3. d4 {[%clk 0:02:35]}  cxd4 {[%clk 0:03:01]} 4. Nxd4 {[%clk 0:02:28]}  a6 {[%clk 0:03:01]} 5. c4 {[%clk 0:02:28]}  Nf6 {[%clk 0:03:01]} 6. Nc3 {[%clk 0:02:27]}  Bb4 {[%clk 0:03:01]} 7. e5 {[%clk 0:02:25]}  Qa5 {[%clk 0:02:04]} 8. exf6 {[%clk 0:02:21]}  Bxc3+ {[%clk 0:02:04]} 9. bxc3 {[%clk 0:02:18]}  Qxc3+ {[%clk 0:02:05]} 10. Ke2 {[%clk 0:02:17]}  Qxa1 {[%clk 0:01:37]} 11. fxg7 {[%clk 0:02:16]}  Qxa2+ {[%clk 0:01:30]} 12. Kf3 {[%clk 0:01:52]}  Rg8 {[%clk 0:01:22]} 13. Bh6 {[%clk 0:01:51]}  Nc6 {[%clk 0:00:56]} 14. Nxc6 {[%clk 0:01:48]}  Qa3+ {[%clk 0:00:45]} 15. Qd3 {[%clk 0:01:43]}  Qxd3+ {[%clk 0:00:44]} 16. Bxd3 {[%clk 0:01:44]}  bxc6 {[%clk 0:00:31]} 17. Bxh7 {[%clk 0:01:41]}  Rxg7 {[%clk 0:00:24]} 18. Bxg7 {[%clk 0:01:42]}  Ke7 {[%clk 0:00:21]} 19. Rb1 {[%clk 0:01:39]}  d6 {[%clk 0:00:14]} 20. Be4 {[%clk 0:01:32]}  Bd7 {[%clk 0:00:12]} 21. Rb7 {[%clk 0:01:31]}  d5 {[%clk 0:00:11]} 22. Bd3 {[%clk 0:01:29]}  a5 {[%clk 0:00:09]} 23. c5 {[%clk 0:01:28]}  a4 {[%clk 0:00:08]} 24. Bb1 {[%clk 0:01:25]}  f6 {[%clk 0:00:07]} 25. Bxf6+ {[%clk 0:01:24]}  Kxf6 {[%clk 0:00:05]} 26. Rxd7 {[%clk 0:01:25]}  a3 {[%clk 0:00:03]} 27. Ba2 {[%clk 0:01:25]}  Ke5 {[%clk 0:00:02]} 28. Ke3 {[%clk 0:01:24]}  Rh8 {[%clk 0:00:02]} 29. Rf7 {[%clk 0:01:22]}  Rb8 {[%clk 0:00:02]} 30. f4# {[%clk 0:01:21]} 1-0


[Site "https://www.chess.com"]